fUST/lending_fUST_20240314
["ID","MTS","AMOUNT","RATE_DAILY","PERIOD"]
[318693506,1710366640742,-500.0,0.00017945,2]
[318693507,1710366640751,-500.0,0.00017945,2]
[318693508,1710366640760,-151.0,0.00017945,2]
[318693509,1710366640769,-151.0,0.00017945,2]
[318693510,1710366640778,-492.47358261,0.00017945,2]
[318693511,1710366640787,-355.58697149,0.00017945,2]
[318693512,1710366640797,-500.24017723,0.00017945,2]
[318693513,1710366640806,-205.01353539,0.00017945,2]
[318693514,1710366640815,-500.0,0.00017945,2]
[318693515,1710366640824,-500.0,0.00017945,2]
[318693516,1710366640833,-500.0,0.00017945,2]
[318693517,1710366640843,-500.0,0.00017945,2]
[318693518,1710366640852,-500.0,0.00017945,2]
[318693519,1710366640861,-500.0,0.00017945,2]
[318693520,1710366640870,-500.0,0.00017945,2]
[318693521,1710366640879,-500.0,0.00017945,2]
[318693522,1710366640888,-500.0,0.00017945,2]
[318693523,1710366640897,-500.0,0.00017945,2]
[318693524,1710366640907,-500.0,0.00017945,2]
[318693525,1710366640916,-500.0,0.00017945,2]
[318693526,1710366640925,-500.0,0.00017945,2]
[318693527,1710366640934,-500.0,0.00017945,2]
[318693528,1710366640944,-500.0,0.00017945,2]
[318693529,1710366640953,-500.0,0.00017945,2]
[318693530,1710366640961,-500.0,0.00017945,2]
[318693531,1710366640970,-502.36460615,0.00017945,2]
[318693532,1710366640979,-500.0,0.00017945,2]
[318693533,1710366640988,-500.0,0.00017945,2]
[318693534,1710366640997,-500.0,0.00017945,2]
[318693535,1710366641006,-500.0,0.00017945,2]
[318693536,1710366641015,-500.0,0.00017945,2]
[318693537,1710366641024,-500.0,0.00017945,2]
[318693538,1710366641033,-500.0,0.00017945,2]
[318693539,1710366641043,-500.0,0.00017945,2]
[318693540,1710366641052,-666.71,0.00017945,2]
[318693541,1710366641062,-666.71,0.00017945,2]
[318693542,1710366641071,-155.07753877,0.00017946,2]
[318693543,1710366641080,-500.0,0.00017946,2]
[318693544,1710366641089,-500.0,0.00017946,2]
[318693545,1710366641098,-500.0,0.00017946,2]
[318693546,1710366641107,-500.0,0.00017946,2]
[318693547,1710366641116,-500.0,0.00017946,2]
[318693548,1710366641125,-500.0,0.00017946,2]
[318693549,1710366641134,-173.6923114,0.00017946,2]
[318693550,1710366641145,-500.0,0.00017946,2]
[318693551,1710366641154,-151.0,0.00017946,2]
[318693552,1710366641163,-151.0,0.00017946,2]
[318693553,1710366641172,-151.0,0.00017946,2]
[318693554,1710366641181,-151.0,0.00017946,2]
[318693555,1710366641190,-151.0,0.00017946,2]
[318693556,1710366641199,-151.0,0.00017946,2]
[318693557,1710366641209,-151.0,0.00017946,2]
[318693559,1710366641219,-151.0,0.00017946,2]
[318693560,1710366641228,-151.0,0.00017946,2]
[318693562,1710366641237,-151.0,0.00017946,2]
[318693564,1710366641246,-500.0,0.00017946,2]
[318693566,1710366641257,-500.0,0.00017946,2]
[318693568,1710366641266,-500.0,0.00017946,2]
[318693569,1710366641276,-500.0,0.00017946,2]
[318693571,1710366641284,-500.0,0.00017946,2]
[318693573,1710366641294,-500.0,0.00017946,2]
[318693574,1710366641304,-500.0,0.00017946,2]
[318693575,1710366641312,-500.0,0.00017946,2]
[318693576,1710366641321,-259.45531949,0.00017946,2]
[318693577,1710366641330,-500.0,0.00017946,2]
[318693578,1710366641340,-500.0,0.00017946,2]
[318693583,1710366641426,-500.0,0.00017946,2]
[318693585,1710366641436,-500.0,0.00017946,2]
[318693587,1710366641446,-500.0,0.00017946,2]
[318693589,1710366641454,-500.0,0.00017946,2]
[318693590,1710366641463,-500.0,0.00017946,2]
[318693591,1710366641472,-500.0,0.00017946,2]
[318693592,1710366641481,-500.0,0.00017946,2]
[318693593,1710366641490,-500.0,0.00017946,2]
[318693594,1710366641499,-484.68,0.00017946,2]
[318693595,1710366641508,-500.0,0.00017946,2]
[318693596,1710366641517,-500.0,0.00017946,2]
[318693597,1710366641529,-500.0,0.00017946,2]
[318693598,1710366641539,-500.0,0.00017946,2]
[318693599,1710366641548,-500.0,0.00017946,2]
[318693600,1710366641557,-500.0,0.00017946,2]
[318693601,1710366641566,-500.0,0.00017946,2]
[318693602,1710366641576,-500.0,0.00017946,2]
[318693603,1710366641585,-216.90606651,0.00017946,2]
[318693604,1710366641594,-500.0,0.00017946,2]
[318693605,1710366641604,-500.0,0.00017946,2]
[318693606,1710366641614,-500.0,0.00017946,2]
[318693607,1710366641624,-500.0,0.00017946,2]
[318693608,1710366641633,-246.50090055,0.00017946,2]
[318693609,1710366641642,-500.0,0.00017946,2]
[318693610,1710366641652,-500.0,0.00017946,2]
[318693611,1710366641661,-500.0,0.00017946,2]
[318693612,1710366641669,-500.0,0.00017946,2]
[318693613,1710366641678,-500.0,0.00017946,2]
[318693614,1710366641687,-500.0,0.00017946,2]
[318693615,1710366641697,-500.0,0.00017946,2]
[318693616,1710366641707,-500.0,0.00017946,2]
[318693617,1710366641719,-500.0,0.00017946,2]
[318693618,1710366641729,-500.0,0.00017946,2]
[318693619,1710366641738,-500.0,0.00017946,2]
[318693620,1710366641748,-500.0,0.00017946,2]
[318693621,1710366641758,-500.0,0.00017946,2]
[318693622,1710366641767,-500.0,0.00017946,2]
[318693623,1710366641776,-500.0,0.00017946,2]
[318693624,1710366641785,-500.0,0.00017946,2]
[318693625,1710366641795,-568.96717848,0.00017946,2]
[318693626,1710366641804,-500.0,0.00017946,2]
[318693627,1710366641813,-500.0,0.00017946,2]
[318693628,1710366641822,-500.0,0.00017946,2]
[318693629,1710366641831,-500.0,0.00017946,2]
[318693630,1710366641840,-500.0,0.00017946,2]
[318693631,1710366641849,-500.0,0.00017946,2]
[318693632,1710366641859,-500.0,0.00017946,2]
[318693633,1710366641868,-500.0,0.00017946,2]
[318693634,1710366641877,-500.0,0.00017946,2]
[318693635,1710366641886,-500.0,0.00017946,2]
[318693636,1710366641895,-500.0,0.00017946,2]
[318693637,1710366641904,-500.0,0.00017946,2]
[318693638,1710366641914,-500.0,0.00017946,2]
[318693639,1710366641922,-500.0,0.00017946,2]
[318693640,1710366641931,-500.0,0.00017946,2]
[318693641,1710366641941,-500.0,0.00017946,2]
[318693642,1710366641950,-500.0,0.00017946,2]
[318693643,1710366641959,-500.0,0.00017946,2]
[318693644,1710366641969,-500.0,0.00017946,2]
[318693645,1710366641978,-500.0,0.00017946,2]
[318693646,1710366641987,-500.0,0.00017946,2]
[318693647,1710366641997,-500.0,0.00017946,2]
[318693648,1710366642007,-500.0,0.00017946,2]
[318693649,1710366642017,-500.0,0.00017946,2]
[318693650,1710366642027,-500.0,0.00017946,2]
[318693651,1710366642037,-500.0,0.00017946,2]
[318693652,1710366642046,-500.0,0.00017946,2]
[318693653,1710366642057,-500.0,0.00017946,2]
[318693654,1710366642066,-500.0,0.00017946,2]
[318693655,1710366642075,-500.0,0.00017946,2]
[318693656,1710366642085,-666.71,0.00017946,2]
[318693657,1710366642094,-666.71,0.00017946,2]
[318693658,1710366642104,-666.71,0.00017946,2]
[318693659,1710366642113,-666.71,0.00017946,2]
[318693660,1710366642123,-666.71,0.00017946,2]
[318693661,1710366642132,-666.71,0.00017946,2]
[318693662,1710366642141,-666.71,0.00017946,2]
[318693663,1710366642150,-2594.58318081,0.00017946,2]
[318693664,1710366642163,-705.39713821,0.00017946,2]
[318693665,1710366642175,-644.44286179,0.00017946,2]
[318693711,1710366643316,-6920.72058762,0.00017946,2]
[318693712,1710366643339,-886.027425,0.00017946,2]
[318693713,1710366643351,-660.44463536,0.00017946,2]
[318693760,1710366646789,-734.96,0.00017946,2]
[318693763,1710366646801,-37759.14469549,0.00017946,2]
[318693766,1710366646824,-878.92675256,0.00017946,2]
[318693848,1710367247999,5249.07386133,0.0001364,2]
[318693851,1710367302906,-1081.4087181,0.00013539,2]
[318693852,1710367302928,-250.0,0.0001354,2]
[318693853,1710367302948,-155.07753877,0.00013639,2]
[318693854,1710367302970,-19650.92613867,0.0001364,2]
[318693855,1710367302991,-90.58760446,0.00013837,2]
[318693863,1710367375591,-528.93081481,0.00013502,2]
[318693864,1710367375613,-210.72743714,0.00013502,2]
[318693865,1710367375635,-624.65442974,0.00013503,2]
[318693866,1710367375656,-2287.90479921,0.00013503,2]
[318693867,1710367375677,-95.7825191,0.00013503,2]
[318693868,1710367403086,644.67484635,0.000135,2]
[318693869,1710367403165,155.07753877,0.000135,2]
[318693870,1710367404835,5162.74519974,0.00013368,2]
[318693871,1710367405715,191.63961373,0.000135,2]
[318693872,1710367409305,318.146428,0.000135,2]
[318693873,1710367418094,156.04927412,0.000135,2]
[318693874,1710367424842,2371.66709929,0.00013368,2]
[318693875,1710367444722,-704.36144243,0.00013367,2]
[318693876,1710367444742,-2548.63855757,0.00013368,2]
[318693877,1710367471345,5162.74519974,0.00013234,2]
[318693878,1710367489372,3837.25480026,0.00013234,2]
[318693879,1710367511024,-1141.0,0.00013234,2]
[318693880,1710367579249,-524.74757252,0.00013231,2]
[318693881,1710367579270,-0.25242748,0.00013232,2]
[318693896,1710367709566,-616.32126211,0.00013096,2]
[318693897,1710367709587,-204.80125661,0.00013097,2]
[318693898,1710367709609,-211.89996831,0.000131,2]
[318693899,1710367709630,-212.15239579,0.00013233,2]
[318693900,1710367709651,-115.08067394,0.00013234,2]
[318693901,1710367709673,-2605.512209,0.00013363,2]
[318693902,1710367709695,-1197.23223424,0.00013543,2]
[318693959,1710367832473,-1081.4087181,0.00013097,2]
[318693961,1710367832482,-210.72743714,0.00013098,2]
[318693963,1710367832492,-5162.74519974,0.000131,2]
[318693965,1710367832501,-446.49238785,0.00013407,2]
[318693967,1710367832510,-1131.38323276,0.00013543,2]
[318693969,1710367832519,-155.07753877,0.00013636,2]
[318693971,1710367832528,-155.09771156,0.0001364,2]
[318693973,1710367832537,-300.0,0.00013698,2]
[318693975,1710367832547,-3000.0,0.00013699,2]
[318693977,1710367832556,-3040.4526345,0.00013699,2]
[318693979,1710367832567,-1253.97614,0.00013699,2]
[318693981,1710367832576,-704.36144243,0.00014548,2]
[318693983,1710367832585,-9381.85806659,0.00014549,2]
[318693985,1710367832597,-6005.95503175,0.00014549,2]
[318693988,1710367832611,-3344.90875409,0.00014549,2]
[318693990,1710367832622,-2450.03156476,0.00014549,2]
[318693992,1710367832634,-3717.24658281,0.00014549,2]
[318693994,1710367832643,-250.0,0.00014754,2]
[318693996,1710367832652,-202.25268222,0.000149,2]
[318693998,1710367832661,-155.07753877,0.00015066,2]
[318694000,1710367832671,-317.0,0.00015067,2]
[318694002,1710367832680,-500.0,0.00015068,2]
[318694004,1710367832689,-500.93452526,0.00015068,2]
[318694006,1710367832698,-500.0,0.00015068,2]
[318694008,1710367832707,-500.0,0.00015068,2]
[318694010,1710367832716,-608.75794298,0.00015068,2]
[318694012,1710367832725,-500.0,0.00015068,2]
[318694014,1710367832735,-500.0,0.00015068,2]
[318694016,1710367832744,-500.0,0.00015068,2]
[318694018,1710367832753,-500.0,0.00015068,2]
[318694020,1710367832761,-500.0,0.00015068,2]
[318694022,1710367832771,-500.0,0.00015068,2]
[318694024,1710367832779,-500.0,0.00015068,2]
[318694026,1710367832789,-500.0,0.00015068,2]
[318694028,1710367832798,-500.0,0.00015068,2]
[318694029,1710367832807,-500.0,0.00015068,2]
[318694032,1710367832817,-500.0,0.00015068,2]
[318694033,1710367832826,-500.0,0.00015068,2]
[318694035,1710367832835,-295.25061809,0.00015068,2]
[318694037,1710367832845,-1000.0,0.00017846,2]
[318694039,1710367832854,-1001.001001,0.00017899,2]
[318694041,1710367832863,-1146.91758415,0.000179,2]
[318694043,1710367832872,-271.01329752,0.00017946,2]
[318694045,1710367832881,-500.89354915,0.00017946,2]
[318694047,1710367832892,-347.60286108,0.00017946,2]
[318694049,1710367832901,-500.0,0.00017946,2]
[318694051,1710367832911,-500.0,0.00017946,2]
[318694062,1710367833000,-500.0,0.00017946,2]
[318694064,1710367833009,-491.51760649,0.00017946,2]
[318694066,1710367833018,-501.75530838,0.00017946,2]
[318694068,1710367833027,-500.0,0.00017946,2]
[318694069,1710367833038,-500.0,0.00017946,2]
[318694071,1710367833047,-500.0,0.00017946,2]
[318694073,1710367833056,-500.0,0.00017946,2]
[318694076,1710367833066,-500.0,0.00017946,2]
[318694077,1710367833076,-171.07906246,0.00017946,2]
[318694079,1710367833088,-328.92093754,0.00017946,2]
[318694081,1710367833097,-500.0,0.00017946,2]
[318694083,1710367833106,-500.0,0.00017946,2]
[318694085,1710367833115,-500.0,0.00017946,2]
[318694087,1710367833125,-500.0,0.00017946,2]
[318694089,1710367833135,-500.0,0.00017946,2]
[318694090,1710367833144,-500.0,0.00017946,2]
[318694091,1710367833153,-500.0,0.00017946,2]
[318694092,1710367833162,-382.8618171,0.00017946,2]
[318694093,1710367833171,-500.0,0.00017946,2]
[318694094,1710367833180,-500.0,0.00017946,2]
[318694095,1710367833189,-500.0,0.00017946,2]
[318694096,1710367833198,-500.0,0.00017946,2]
[318694097,1710367833207,-500.0,0.00017946,2]
[318694098,1710367833216,-500.0,0.00017946,2]
[318694099,1710367833225,-500.0,0.00017946,2]
[318694100,1710367833234,-500.0,0.00017946,2]
[318694101,1710367833243,-500.0,0.00017946,2]
[318694102,1710367833252,-500.0,0.00017946,2]
[318694103,1710367833262,-500.0,0.00017946,2]
[318694104,1710367833271,-500.0,0.00017946,2]
[318694105,1710367833280,-500.0,0.00017946,2]
[318694106,1710367833289,-523.5020682,0.00017946,2]
[318694107,1710367833297,-500.0,0.00017946,2]
[318694108,1710367833306,-500.0,0.00017946,2]
[318694109,1710367833315,-500.0,0.00017946,2]
[318694110,1710367833323,-500.0,0.00017946,2]
[318694111,1710367833332,-500.0,0.00017946,2]
[318694112,1710367833342,-500.0,0.00017946,2]
[318694113,1710367833351,-500.0,0.00017946,2]
[318694115,1710367833361,-500.0,0.00017946,2]
[318694117,1710367833370,-13049.99188189,0.00017946,2]
[318694210,1710367838451,-4264.09663475,0.00017946,2]
[318694212,1710367838463,-38884.7552724,0.00017946,2]
[318694526,1710367842254,-72390.97170402,0.00017946,2]
[318694527,1710367842378,-342.80499812,0.00017946,2]
[318694632,1710367843506,-1217.62822686,0.00017946,2]
[318694633,1710367843521,-329.6614777,0.00017946,2]
[318694840,1710367846921,-39000.055136,0.00017946,2]
[318694843,1710367846932,-342.35,0.00017946,2]
[318694845,1710367846943,-54774.57527604,0.00017946,2]
[318698361,1710369032654,-155.07753877,0.00015,2]
[318698363,1710369032663,-210.72743714,0.00015751,2]
[318698367,1710369032672,-145.5472325,0.00015751,2]
[318698371,1710369032684,-259.17639208,0.00015751,2]
[318698374,1710369032693,-1952.51859257,0.00015752,2]
[318698377,1710369032703,-155.07753877,0.00015752,2]
[318698380,1710369032712,-704.36144243,0.00015753,2]
[318698383,1710369032721,-1081.4087181,0.00015753,2]
[318698386,1710369032730,-318.146428,0.00015754,2]
[318698387,1710369032738,-250.0,0.00015767,2]
[318698390,1710369032747,-24900.0,0.00016,2]
[318698393,1710369032757,-795.98569,0.00016098,2]
[318698396,1710369032766,-646.42386012,0.00017113,2]
[318698399,1710369032774,-545.98929451,0.00017684,2]
[318698402,1710369032783,-1245.56189665,0.00017745,2]
[318698405,1710369032792,-1000.0,0.00017746,2]
[318698408,1710369032802,-1000.0,0.00017764,2]
[318698411,1710369032811,-500.0,0.00017766,2]
[318698414,1710369032821,-5162.74519974,0.00017767,2]
[318698417,1710369032830,-1245.56189664,0.00017776,2]
[318698420,1710369032840,-1000.0,0.00017801,2]
[318698423,1710369032849,-745.04305039,0.00017802,2]
[318698426,1710369032860,-254.95694961,0.00017802,2]
[318698428,1710369032869,-1245.56189664,0.00017807,2]
[318698430,1710369032878,-6.46936644,0.00017825,2]
[318698432,1710369032891,-993.53063356,0.00017825,2]
[318698434,1710369032900,-1000.0,0.00017834,2]
[318698436,1710369032909,-1245.56189664,0.00017838,2]
[318698438,1710369032918,-500.0,0.00017844,2]
[318698440,1710369032927,-500.0,0.00017845,2]
[318698442,1710369032936,-500.0,0.00017845,2]
[318698444,1710369032945,-500.0,0.00017845,2]
[318698446,1710369032953,-500.0,0.00017845,2]
[318698448,1710369032962,-500.65082773,0.00017845,2]
[318698450,1710369032971,-500.0,0.00017845,2]
[318698452,1710369032980,-554.67288485,0.00017845,2]
[318698453,1710369032989,-645.37070961,0.00017845,2]
[318698455,1710369032998,-500.0,0.00017845,2]
[318698458,1710369033008,-500.0,0.00017845,2]
[318698459,1710369033017,-500.0,0.00017845,2]
[318698461,1710369033026,-635.04,0.00017845,2]
[318698463,1710369033035,-437.68855591,0.00017845,2]
[318698465,1710369033044,-635.04,0.00017845,2]
[318698467,1710369033053,-635.04,0.00017845,2]
[318698469,1710369033061,-635.04,0.00017845,2]
[318698471,1710369033071,-635.04,0.00017845,2]
[318698473,1710369033079,-500.0,0.00017845,2]
[318698475,1710369033089,-500.0,0.00017845,2]
[318698477,1710369033097,-500.0,0.00017845,2]
[318698479,1710369033106,-500.0,0.00017845,2]
[318698481,1710369033116,-500.0,0.00017845,2]
[318698483,1710369033125,-500.60780606,0.00017845,2]
[318698485,1710369033135,-254.72782391,0.00017845,2]
[318698486,1710369033144,-500.0,0.00017845,2]
[318698487,1710369033153,-500.0,0.00017845,2]
[318698488,1710369033162,-500.0,0.00017845,2]
[318698489,1710369033171,-500.0,0.00017845,2]
[318698490,1710369033180,-500.0,0.00017845,2]
[318698491,1710369033189,-183.01165172,0.00017845,2]
[318698492,1710369033201,-316.98834828,0.00017845,2]
[318698493,1710369033210,-500.0,0.00017845,2]
[318698494,1710369033219,-500.0,0.00017845,2]
[318698495,1710369033231,-500.0,0.00017845,2]
[318698496,1710369033240,-500.0,0.00017845,2]
[318698497,1710369033249,-500.0,0.00017845,2]
[318698498,1710369033258,-500.0,0.00017845,2]
[318698499,1710369033267,-500.0,0.00017845,2]
[318698500,1710369033276,-500.0,0.00017845,2]
[318698501,1710369033285,-500.0,0.00017845,2]
[318698502,1710369033294,-500.0,0.00017845,2]
[318698503,1710369033304,-500.0,0.00017845,2]
[318698504,1710369033314,-500.0,0.00017845,2]
[318698505,1710369033323,-500.0,0.00017845,2]
[318698506,1710369033333,-424.32,0.00017845,2]
[318698508,1710369033341,-500.0,0.00017845,2]
[318698510,1710369033350,-331.88,0.00017845,2]
[318698512,1710369033359,-500.0,0.00017845,2]
[318698514,1710369033368,-500.0,0.00017845,2]
[318698516,1710369033377,-500.0,0.00017845,2]
[318698518,1710369033387,-500.0,0.00017845,2]
[318698520,1710369033397,-500.0,0.00017845,2]
[318698522,1710369033406,-500.0,0.00017845,2]
[318698524,1710369033415,-500.0,0.00017845,2]
[318698526,1710369033424,-500.0,0.00017845,2]
[318698528,1710369033433,-500.0,0.00017845,2]
[318698530,1710369033443,-500.0,0.00017845,2]
[318698532,1710369033452,-500.0,0.00017845,2]
[318698534,1710369033461,-500.0,0.00017845,2]
[318698536,1710369033471,-122.73233006,0.00017845,2]
[318699079,1710369038654,-318.146428,0.0001575,2]
[318699081,1710369038663,-377.26766994,0.00017845,2]
[318699083,1710369038673,-500.0,0.00017845,2]
[318699085,1710369038683,-500.0,0.00017845,2]
[318699087,1710369038692,-500.0,0.00017845,2]
[318699089,1710369038701,-500.0,0.00017845,2]
[318699091,1710369038711,-500.0,0.00017845,2]
[318699093,1710369038720,-500.0,0.00017845,2]
[318699095,1710369038730,-500.0,0.00017845,2]
[318699097,1710369038738,-500.0,0.00017845,2]
[318699099,1710369038748,-35036.13632867,0.00017846,2]
[318699101,1710369038760,-2545.763613,0.00017846,2]
[318699104,1710369038771,-23848.88163529,0.00017846,2]
[318699559,1710369043663,-533.58561713,0.00017846,2]
[318699561,1710369043674,-72177.47303339,0.00017846,2]
[318699563,1710369043685,-30308.67016248,0.00017846,2]
[318702273,1710370232100,-210.72743714,0.00015254,2]
[318702274,1710370232111,-210.72743714,0.00015255,2]
[318702275,1710370232121,-14233.79795122,0.00016227,2]
[318702276,1710370232132,-10666.20204878,0.00016227,2]
[318702277,1710370232142,-397.992845,0.00016227,2]
[318702278,1710370232152,-500.0,0.00017499,2]
[318702279,1710370232161,-597.5781791,0.00017499,2]
[318702280,1710370232171,-502.74,0.00017499,2]
[318702281,1710370232180,-502.74,0.00017499,2]
[318702282,1710370232190,-401.18597369,0.00017499,2]
[318702283,1710370232201,-500.0,0.00017499,2]
[318702284,1710370232211,-500.0,0.00017499,2]
[318702285,1710370232222,-369.54577005,0.00017499,2]
[318702286,1710370232232,-500.0,0.00017499,2]
[318702287,1710370232243,-500.0,0.00017499,2]
[318702288,1710370232254,-500.0,0.00017499,2]
[318702291,1710370232266,-500.0,0.00017499,2]
[318702293,1710370232276,-500.0,0.00017499,2]
[318702295,1710370232288,-500.0,0.00017499,2]
[318702297,1710370232299,-232.49129884,0.00017499,2]
[318702299,1710370232311,-500.0,0.00017499,2]
[318702301,1710370232321,-500.0,0.00017499,2]
[318702303,1710370232331,-500.0,0.00017499,2]
[318702305,1710370232341,-9401.52388454,0.000175,2]
[318702307,1710370232353,-458.79444241,0.000175,2]
[318702366,1710370237911,-726.88,0.00017325,2]
[318702369,1710370237923,-2719.07560286,0.00017325,2]
[318702371,1710370237933,-500.0,0.00017499,2]
[318702373,1710370237942,-500.0,0.00017499,2]
[318702375,1710370237952,-63687.78235563,0.000175,2]
[318702377,1710370237962,-249.11237936,0.00017568,2]
[318702379,1710370237971,-5162.74519974,0.00017668,2]
[318702381,1710370237980,-500.0,0.00017844,2]
[318702383,1710370237990,-500.0,0.00017844,2]
[318702385,1710370237999,-500.0,0.00017844,2]
[318702387,1710370238008,-500.0,0.00017844,2]
[318702389,1710370238016,-502.74,0.00017844,2]
[318702391,1710370238026,-500.0,0.00017844,2]
[318702393,1710370238035,-500.0,0.00017844,2]
[318702395,1710370238044,-500.98232042,0.00017844,2]
[318702396,1710370238053,-501.21798354,0.00017844,2]
[318702398,1710370238062,-360.80046553,0.00017844,2]
[318702401,1710370238071,-500.0,0.00017844,2]
[318702403,1710370238080,-500.0,0.00017844,2]
[318702405,1710370238088,-500.0,0.00017844,2]
[318702407,1710370238097,-407.61164973,0.00017844,2]
[318702409,1710370238106,-501.35800786,0.00017845,2]
[318702411,1710370238114,-500.0,0.00017845,2]
[318702413,1710370238124,-502.74,0.00017845,2]
[318702415,1710370238133,-500.0,0.00017845,2]
[318702417,1710370238141,-500.0,0.00017845,2]
[318702419,1710370238151,-500.0,0.00017845,2]
[318702421,1710370238160,-500.0,0.00017845,2]
[318702423,1710370238169,-15957.05849742,0.00017846,2]
[318702425,1710370238178,-155.07753877,0.00017846,2]
[318702427,1710370238187,-687.12085551,0.00017846,2]
[318702429,1710370238196,-11744.35300271,0.00017846,2]
[318702601,1710370239930,-7285.4278178,0.00017846,2]
[318702603,1710370239939,-28785.08255808,0.00017846,2]
[318702605,1710370239949,-502.74,0.00017946,2]
[318702607,1710370239959,-500.0,0.00017946,2]
[318702609,1710370239969,-500.0,0.00017946,2]
[318702611,1710370239978,-167.3648052,0.00017946,2]
[318702612,1710370239987,-500.0,0.00017946,2]
[318702614,1710370239996,-34447.09681895,0.00017946,2]
[318703177,1710370246142,-1445.49870041,0.00017946,2]
[318703179,1710370246151,-621.32119301,0.00017969,2]
[318703181,1710370246160,-502.74,0.00017999,2]
[318703183,1710370246170,-500.0,0.00017999,2]
[318703185,1710370246179,-500.0,0.00017999,2]
[318703187,1710370246187,-249.11237932,0.00018029,2]
[318703190,1710370246197,-200.0,0.000181,2]
[318703193,1710370246205,-582.0,0.000184,2]
[318703195,1710370246214,-249.11237932,0.0001849,2]
[318703197,1710370246223,-153.0,0.00018652,2]
[318703199,1710370246231,-249.11237932,0.00018951,2]
[318703201,1710370246240,-401.10924336,0.00019178,2]
[318703203,1710370246249,-166.666666,0.00019178,2]
[318703205,1710370246258,-223.833322,0.00019178,2]
[318703207,1710370246267,-3912.82153739,0.00019288,9]
[318704102,1710371432957,-3500.48389661,0.00015698,2]
[318704104,1710371432966,-704.36144243,0.00015698,2]
[318704105,1710371432976,-360.0,0.00015698,2]
[318704106,1710371432988,-322.1031252,0.00015699,2]
[318704107,1710371432998,-1095.5034,0.00015699,2]
[318704108,1710371433010,-210.72743714,0.000157,2]
[318704109,1710371433019,-360.0,0.00015701,2]
[318704110,1710371433029,-298.554787,0.00015727,2]
[318704111,1710371433039,-13291.8932846,0.00015944,2]
[318704112,1710371433049,-202.98544231,0.00017399,2]
[318704113,1710371433059,-500.0,0.00017499,2]
[318704114,1710371433069,-500.0,0.00017499,2]
[318704115,1710371433079,-305.84151071,0.00017499,2]
[318704116,1710371433089,-500.0,0.00017499,2]
[318704117,1710371433099,-429.43969699,0.00017499,2]
[318704118,1710371433108,-321.33110277,0.00017499,2]
[318704119,1710371433118,-501.56622553,0.00017499,2]
[318704120,1710371433129,-500.0,0.00017499,2]
[318704121,1710371433143,-500.0,0.00017499,2]
[318704122,1710371433156,-502.42362457,0.00017499,2]
[318704123,1710371433166,-500.0,0.00017499,2]
[318704124,1710371433177,-544.73797812,0.00017499,2]
[318704125,1710371433187,-500.33438884,0.00017499,2]
[318704126,1710371433197,-441.78411549,0.00017499,2]
[318704127,1710371433207,-5162.74519974,0.00017668,2]
[318704128,1710371433217,-413.32,0.00017844,2]
[318704129,1710371433227,-200.0,0.000179,2]
[318704130,1710371433237,-500.0,0.00017999,2]
[318704131,1710371433248,-16970.53739958,0.00018,2]
[318704132,1710371433258,-582.0,0.000185,2]
[318704133,1710371433268,-620.12858587,0.00018739,2]
[318704134,1710371433278,-166.666666,0.00019178,2]
[318704135,1710371433289,-657.34938258,0.00019188,2]
[318704136,1710371433299,-249.11237932,0.00019188,2]